bitfinex-derivatives/quotes_SOLF0:USTF0_20250117
["timestamp","ask_amount","ask_price","bid_price","bid_amount"]
[1737086441444,3.0855,211.38,211.3,7.50930928]
[1737086441633,4.7331,211.34,211.32,7.50930928]
[1737086442140,1.508,211.38,211.32,7.50930928]
[1737086442338,4.7327,211.35,211.32,7.50930928]
[1737086443946,4.7329,211.34,211.32,7.50930928]
[1737086445642,1.508,211.38,211.28,4.7341]
[1737086445843,7.50930928,211.37,211.3,7.50930928]
[1737086446348,7.50930928,211.37,211.28,4.7341]
[1737086446536,7.50930928,211.37,211.29,7.50930928]
[1737086447043,7.50930928,211.35,211.25,1.5636]
[1737086447243,7.50930928,211.33,211.26,7.50930928]
[1737086448149,1.5148,211.37,211.28,7.50930928]
[1737086448350,7.50930928,211.35,211.28,7.50930928]
[1737086448547,4.7337,211.31,211.28,7.50930928]
[1737086449250,1.5148,211.37,211.3,7.50930928]
[1737086449452,4.7332,211.33,211.3,7.50930928]
[1737086451653,13.17736577,211.39,211.32,7.50930928]
[1737086451853,18.15565063,211.39,211.34,7.50930928]
[1737086453147,4.7326,211.35,211.34,7.50930928]
[1737086453554,5.66805649,211.39,211.34,7.50930928]
[1737086453750,4.732,211.38,211.36,7.50930928]
[1737086455654,4.7318,211.39,211.36,7.50930928]
[1737086455850,4.7318,211.39,211.38,7.50930928]
[1737086456045,54.53559426,211.4,211.38,7.50930928]
[1737086456046,52.21831008,211.4,211.38,7.50930928]
[1737086456251,7.50930928,211.5,211.38,7.50930928]
[1737086456455,7.50930928,211.5,211.43,7.50930928]
[1737086457351,13.18101668,211.5,211.43,7.50930928]
[1737086457553,25.66063305,211.5,211.43,7.50930928]
[1737086457752,12.47961637,211.49,211.43,7.50930928]
[1737086458150,4.7304,211.45,211.43,7.50930928]
[1737086458653,4.7306,211.44,211.43,7.50930928]
[1737086459857,12.45744087,211.49,211.36,9.5322]
[1737086459858,4.7311,211.42,211.36,9.5322]
[1737086460057,7.50930928,211.46,211.38,7.50930928]
[1737086461552,4.7307,211.44,211.38,7.50930928]
[1737086461757,7.50930928,211.46,211.38,7.50930928]
[1737086462858,4.7317,211.4,211.36,4.8]
[1737086463059,7.50930928,211.44,211.37,7.50930928]
[1737086464150,4.7317,211.39,211.37,7.50930928]
[1737086464354,7.50930928,211.46,211.37,7.50930928]
[1737086464557,7.50930928,211.46,211.39,7.50930928]
[1737086465257,4.7316,211.4,211.38,7.50930928]
[1737086465463,7.50930928,211.46,211.38,7.50930928]
[1737086465665,4.7321,211.38,211.32,4.7332]
[1737086465866,7.50930928,211.4,211.32,7.50930928]
[1737086466362,4.7327,211.35,211.32,7.50930928]
[1737086467972,4.7329,211.34,211.32,7.50930928]
[1737086468166,7.50930928,211.38,211.3,7.50930928]
[1737086468369,7.50930928,211.36,211.3,7.50930928]
[1737086469469,4.7333,211.33,211.29,7.50930928]
[1737086469663,7.50930928,211.36,211.29,7.50930928]
[1737086470270,7.50930928,211.34,211.23,4.5199]
[1737086470461,7.50930928,211.34,211.27,7.50930928]
[1737086471864,4.7339,211.3,211.27,7.50930928]
[1737086474971,4.734,211.29,211.27,7.50930928]
[1737086481370,7.50930928,211.34,211.27,7.50930928]
[1737086481575,4.7342,211.28,211.27,7.50930928]
[1737086488084,4.7338,211.3,211.27,7.50930928]
[1737086489989,4.7341,211.29,211.27,7.50930928]
[1737086495796,4.7342,211.28,211.27,7.50930928]
[1737086497496,7.50930928,211.33,211.27,7.50930928]
[1737086497795,7.50930928,211.35,211.27,7.50930928]
[1737086499194,4.734,211.29,211.27,7.50930928]
[1737086506502,4.734,211.29,211.25,4.7349]
[1737086506699,4.734,211.29,211.28,7.50930928]
[1737086509301,4.7338,211.3,211.28,7.50930928]
[1737086509503,4.7338,211.3,211.29,7.50930928]
[1737086511107,4.7336,211.31,211.29,7.50930928]
[1737086512100,5.66756532,211.42,211.29,7.50930928]
[1737086512311,4.7333,211.32,211.31,7.50930928]
[1737086517405,4.7335,211.31,211.29,7.50930928]
[1737086521514,4.7335,211.31,211.27,4.7344]
[1737086521716,4.7335,211.31,211.29,7.50930928]
[1737086522312,12.46668185,211.38,211.29,7.50930928]
[1737086522516,5.6704,211.39,211.32,7.50930928]
[1737086523013,7.50930928,211.4,211.32,7.50930928]
[1737086523213,19.97543606,211.4,211.32,7.50930928]
[1737086523914,5.6704,211.39,211.32,7.50930928]
[1737086524115,4.733,211.34,211.32,7.50930928]
[1737086524811,4.7336,211.31,211.3,7.50930928]
[1737086526009,7.50930928,211.36,211.3,7.50930928]
[1737086526010,4.7333,211.32,211.3,7.50930928]
[1737086528312,4.7331,211.34,211.3,7.50930928]
[1737086528515,13.1781777,211.38,211.32,7.50930928]
[1737086528712,7.50930928,211.38,211.32,7.50930928]
[1737086528913,4.7327,211.35,211.32,7.50930928]
[1737086529515,4.7329,211.34,211.32,7.50930928]
[1737086529815,7.50930928,211.38,211.32,7.50930928]
[1737086529816,4.5807,211.41,211.32,7.50930928]
[1737086530012,4.732,211.38,211.36,7.50930928]
[1737086531309,4.732,211.38,211.27,4.8]
[1737086531310,4.7324,211.36,211.34,7.50930928]
[1737086531516,10.63670928,211.41,211.34,7.50930928]
[1737086532117,4.7322,211.37,211.34,7.50930928]
[1737086532813,7.50930928,211.43,211.36,7.50930928]
[1737086533121,7.50930928,211.41,211.34,7.50930928]
[1737086533516,7.50930928,211.39,211.27,4.8]
[1737086533813,7.50930928,211.37,211.3,7.50930928]
[1737086535218,4.7331,211.33,211.3,7.50930928]
[1737086535612,4.7334,211.32,211.3,7.50930928]
[1737086535809,7.50930928,211.35,211.28,7.50930928]
[1737086536317,7.50930928,211.35,211.3,7.50930928]
[1737086536820,4.7331,211.33,211.3,7.50930928]
[1737086537713,4.7329,211.34,211.3,7.50930928]
[1737086537909,4.7329,211.34,211.3,12.24310928]
[1737086539121,4.7327,211.35,211.32,7.50930928]
[1737086540524,4.7324,211.37,211.32,12.24260928]
[1737086541016,4.7324,211.37,211.34,7.50930928]
[1737086541321,4.733,211.34,211.28,4.7342]
[1737086541526,4.733,211.34,211.31,7.50930928]
[1737086543321,7.50930928,211.38,211.31,7.50930928]
[1737086544123,4.7327,211.35,211.31,7.50930928]
[1737086544520,4.7327,211.35,211.33,7.50930928]
[1737086544919,14.04566247,211.43,211.33,7.50930928]
[1737086544920,4.7322,211.37,211.33,7.50930928]
[1737086545220,7.50930928,211.4,211.33,7.50930928]
[1737086546122,4.7325,211.36,211.33,7.50930928]
[1737086549124,4.7327,211.35,211.24,26.37434429]
[1737086549323,4.7327,211.35,211.32,7.50930928]
[1737086550225,7.50930928,211.42,211.34,7.50930928]
[1737086550425,14.04467888,211.43,211.38,7.50930928]
[1737086550619,1.5923,211.43,211.38,7.50930928]
[1737086550921,7.50930928,211.41,211.24,26.37434429]
[1737086551125,7.50930928,211.41,211.32,7.50930928]
[1737086551526,4.7329,211.34,211.32,7.50930928]
[1737086551728,4.7329,211.34,211.3,7.50930928]
[1737086552030,4.7329,211.34,211.32,7.50930928]
[1737086552230,19.96268658,211.41,211.32,7.50930928]
[1737086552526,7.50930928,211.39,211.32,7.50930928]
[1737086552718,7.50930928,211.39,211.31,7.50930928]
[1737086552917,12.4533773,211.41,211.33,7.50930928]
[1737086552918,19.96268658,211.41,211.33,7.50930928]
[1737086553129,12.4533773,211.41,211.33,7.50930928]
[1737086553327,1.5923,211.43,211.33,7.50930928]
[1737086553328,5.66373757,211.4,211.33,7.50930928]
[1737086553527,12.54056825,211.43,211.35,7.50930928]
[1737086553728,12.54056825,211.43,211.37,7.50930928]
[1737086554423,4.7314,211.41,211.37,7.50930928]
[1737086555831,4.7316,211.4,211.35,7.50930928]
[1737086556630,4.7313,211.42,211.35,7.50930928]
[1737086557027,21.55862563,211.43,211.35,7.50930928]
[1737086557331,9.10160928,211.43,211.35,7.50930928]
[1737086557531,4.7313,211.41,211.35,12.24190928]
[1737086557831,4.7313,211.41,211.37,7.50930928]
[1737086559129,4.7313,211.41,211.39,7.50930928]
[1737086559631,18.11937875,211.47,211.39,7.50930928]
[1737086559838,5.66461406,211.47,211.46,7.50930928]
[1737086560028,10.39461406,211.47,211.43,7.50930928]
[1737086560229,5.66461406,211.47,211.32,4.5206]
[1737086560429,7.50930928,211.48,211.41,7.50930928]
[1737086560732,4.7305,211.45,211.43,7.50930928]
[1737086561133,4.7305,211.45,211.41,7.50930928]
[1737086561431,4.7309,211.43,211.41,7.50930928]
[1737086561733,7.50930928,211.46,211.39,7.50930928]
[1737086561934,4.7311,211.42,211.39,7.50930928]
[1737086562824,4.7308,211.44,211.39,7.50930928]
[1737086563023,7.50930928,211.46,211.39,7.50930928]
[1737086565424,4.7311,211.42,211.39,7.50930928]
[1737086566528,4.7314,211.41,211.38,7.50930928]
[1737086567834,7.50930928,211.46,211.38,7.50930928]
[1737086568828,18.09440062,211.52,211.32,9.3206]
[1737086569037,12.43574986,211.51,211.42,7.50930928]
[1737086569231,7.50930928,211.5,211.42,7.50930928]
[1737086569527,7.50930928,211.5,211.44,7.50930928]
[1737086571231,4.73,211.47,211.44,7.50930928]
[1737086572235,7.50930928,211.51,211.44,7.50930928]
[1737086572835,4.7298,211.48,211.44,7.50930928]
[1737086580242,4.7291,211.51,211.46,7.50930928]
[1737086580541,5.64987783,211.53,211.48,7.50930928]
[1737086581440,7.50930928,211.54,211.48,7.50930928]
[1737086582140,4.7289,211.52,211.48,7.50930928]
[1737086583138,157.50694142,211.62,211.41,4.6576]
[1737086583139,121.38940308,211.63,211.51,7.50930928]
[1737086583338,225.02849653,211.68,211.62,8.50930928]
[1737086583544,213.02419653,211.68,211.63,4.92]
[1737086583738,205.91629653,211.68,211.67,12.23480928]
[1737086583941,205.91629653,211.68,211.67,7.50930928]
[1737086584642,7.50930928,211.78,211.63,9.6462]
[1737086584839,10.54490928,211.76,211.49,88.58]
[1737086585043,1.4721,211.75,211.67,7.50930928]
[1737086585437,4.7242,211.73,211.65,7.50930928]
[1737086585649,4.7242,211.73,211.67,7.50930928]
[1737086586543,4.7244,211.72,211.65,7.50930928]
[1737086586747,7.50930928,211.72,211.65,7.50930928]
[1737086587348,4.7247,211.71,211.65,7.50930928]
[1737086588552,1.4721,211.75,211.69,7.50930928]
[1737086588843,1.4721,211.75,211.72,7.50930928]
[1737086591052,1.4721,211.75,211.74,7.50930928]
[1737086592653,1.4721,211.75,211.72,7.50930928]
[1737086595055,6.1959,211.75,211.7,7.50930928]
[1737086595259,7.50930928,211.74,211.61,6.59358607]
[1737086595761,7.50930928,211.74,211.67,7.50930928]
[1737086596061,4.7247,211.71,211.67,7.50930928]
[1737086596961,4.7247,211.71,211.65,7.50930928]
[1737086597168,4.725,211.7,211.64,7.50930928]
[1737086597361,4.725,211.7,211.66,7.50930928]
[1737086598961,1.4721,211.75,211.68,7.50930928]
[1737086600165,4.724,211.74,211.68,7.50930928]
[1737086601061,1.4721,211.75,211.7,7.50930928]
[1737086601664,1.4721,211.75,211.72,12.23370928]
[1737086602757,3.0356,211.76,211.73,4.7241]
[1737086602958,3.0356,211.76,211.72,7.50930928]
[1737086603157,3.0356,211.76,211.74,7.50930928]
[1737086603359,1.5624,211.84,211.74,7.50930928]
[1737086603561,1.5624,211.84,211.78,7.50930928]
[1737086603562,3.0552,211.83,211.78,7.50930928]
[1737086604366,7.7771,211.83,211.78,7.50930928]
[1737086604568,3.0552,211.83,211.8,7.50930928]
[1737086605367,3.0552,211.83,211.77,16.50258221]
[1737086606770,1.5214,211.83,211.79,4.7227]
[1737086606969,1.5214,211.83,211.77,11.77948221]
[1737086607269,1.5214,211.83,211.77,16.50258221]
[1737086608169,6.2434,211.83,211.77,16.50258221]
[1737086608672,1.5214,211.83,211.75,4.7235]
[1737086610273,4.7226,211.8,211.75,4.7235]
[1737086610469,1.5214,211.83,211.74,11.77948221]
[1737086610970,4.7229,211.79,211.74,11.77948221]
[1737086611166,4.7229,211.79,211.71,11.77948221]
[1737086612166,4.7229,211.79,211.73,4.7241]
[1737086614675,27.7229,211.79,211.73,4.7241]
[1737086615271,23.0,211.79,211.73,4.7241]
[1737086615570,4.723,211.78,211.73,4.7241]
[1737086617280,4.724,211.74,211.71,79.12303287]
[1737086618177,4.724,211.74,211.71,52.74868858]
[1737086618378,4.724,211.74,211.69,158.24606575]
[1737086618978,4.724,211.74,211.69,79.12303287]
[1737086619169,4.724,211.74,211.69,83.84803287]
[1737086619777,4.724,211.74,211.69,6.59358607]
[1737086619979,4.724,211.74,211.7,4.7248]
[1737086625383,4.724,211.74,211.71,7.5442933]
[1737086627880,4.7237,211.75,211.71,7.5442933]
[1737086629081,4.7242,211.73,211.69,4.725]
[1737086629387,4.7242,211.73,211.68,7.5442933]
[1737086630082,4.7242,211.73,211.68,12.2694933]
[1737086634990,4.7242,211.73,211.69,4.725]
[1737086635385,4.7238,211.75,211.62,6.59358607]
[1737086635590,1.5856,211.78,211.72,12.2685933]
[1737086637091,4.7235,211.76,211.72,12.2685933]
[1737086637290,23.0,211.79,211.75,4.7237]
[1737086638089,27.7228,211.79,211.75,4.7237]
[1737086638384,23.0,211.79,211.76,7.5442933]
[1737086638589,23.0,211.81,211.76,12.2676933]
[1737086639389,23.0,211.81,211.78,7.5442933]
[1737086640394,23.0,211.81,211.79,4.7228]
[1737086641183,23.0,211.81,211.8,7.5442933]
[1737086641383,23.0,211.81,211.8,12.2668933]
[1737086641993,23.0,211.81,211.79,7.5442933]
[1737086643595,23.0,211.81,211.77,7.5442933]
[1737086643891,4.7229,211.79,211.77,7.5442933]
[1737086644092,7.5442933,211.8,211.73,7.5442933]
[1737086644495,23.0,211.81,211.75,7.5442933]
[1737086645894,23.0,211.81,211.75,12.2678933]
[1737086646393,30.5442933,211.81,211.73,12.2682933]
[1737086646594,7.5442933,211.77,211.63,6.59358607]
[1737086646895,7.5442933,211.77,211.7,7.5442933]
[1737086648094,4.7239,211.75,211.7,12.2690933]
[1737086660307,7.5442933,211.78,211.7,12.2690933]
[1737086660507,4.7239,211.74,211.7,12.2690933]
[1737086661109,7.5442933,211.76,211.63,4.84]
[1737086661304,7.5442933,211.74,211.59,4.82]
[1737086661504,7.5442933,211.74,211.65,7.5442933]
[1737086661909,4.7249,211.7,211.65,12.2700933]
[1737086664102,7.5442933,211.72,211.54,6.59358607]
[1737086664298,7.5442933,211.72,211.64,7.5442933]
[1737086664507,7.5442933,211.7,211.54,6.59358607]
[1737086664708,4.7254,211.68,211.62,7.5442933]
[1737086664909,7.5442933,211.7,211.62,7.5442933]
[1737086666110,4.7259,211.66,211.62,7.5442933]
[1737086669413,1.5339,211.71,211.64,7.5442933]
[1737086669609,2.9928,211.73,211.66,7.5442933]
[1737086670712,7.5442933,211.72,211.66,7.5442933]
[1737086671212,4.7251,211.69,211.66,7.5442933]
[1737086671912,4.7249,211.7,211.66,7.5442933]
[1737086672608,4.7246,211.72,211.68,7.5442933]
[1737086673415,1.5387,211.77,211.7,7.5442933]
[1737086674508,4.7239,211.75,211.7,12.2688933]
[1737086675718,4.7239,211.75,211.72,7.5442933]
[1737086675920,4.7235,211.76,211.72,7.5442933]
[1737086676116,154.48124142,211.78,211.72,7.5442933]
[1737086677318,10.6330933,211.8,211.74,7.5442933]
[1737086678021,3.0888,211.8,211.74,7.5442933]
[1737086678317,3.0888,211.8,211.76,7.5442933]
[1737086678521,23.0,211.81,211.78,7.5442933]
[1737086681320,27.7226,211.81,211.76,7.5442933]
[1737086684420,4.7231,211.78,211.72,4.7243]
[1737086684721,4.7231,211.78,211.74,7.5442933]
[1737086688325,4.7231,211.78,211.74,12.2681933]
[1737086690425,27.7226,211.81,211.76,7.5442933]
[1737086692123,27.7226,211.81,211.76,12.2675933]
[1737086692524,23.0,211.81,211.76,7.5442933]
[1737086692727,4.7229,211.79,211.75,4.7237]
[1737086694524,7.5442933,211.79,211.62,6.59358607]
[1737086694720,7.5442933,211.79,211.71,4.7244]
[1737086695225,7.5442933,211.79,211.7,7.5442933]
[1737086695425,7.5442933,211.77,211.7,12.2690933]
[1737086696228,4.7239,211.75,211.7,12.2690933]
[1737086696629,7.5442933,211.77,211.7,12.2690933]
[1737086696825,4.724,211.74,211.7,12.2690933]
[1737086697025,7.5442933,211.77,211.7,7.5442933]
[1737086697529,4.724,211.74,211.7,7.5442933]
[1737086699837,7.5442933,211.73,211.56,6.59358607]
[1737086700136,7.5442933,211.73,211.66,7.5442933]
[1737086700336,4.7248,211.71,211.66,7.5442933]
[1737086701037,4.7249,211.7,211.66,7.5442933]
[1737086701939,7.5442933,211.73,211.66,7.5442933]
[1737086702238,4.7246,211.71,211.66,12.2699933]
[1737086703841,4.724,211.74,211.69,4.725]
[1737086704138,7.5442933,211.76,211.7,7.5442933]
[1737086705235,7.5442933,211.76,211.7,12.2689933]
[1737086705739,7.5442933,211.78,211.7,12.2689933]
[1737086706136,4.7237,211.75,211.7,12.2689933]
[1737086709543,4.7231,211.78,211.73,4.7241]
[1737086710048,12.0816933,211.8,211.73,4.7241]
[1737086710741,4.7231,211.78,211.73,4.7241]
[1737086710934,12.0816933,211.8,211.73,4.7241]
[1737086711341,7.5442933,211.74,211.63,6.59358607]
[1737086711537,7.5442933,211.74,211.66,7.5442933]
[1737086711942,7.5442933,211.72,211.66,7.5442933]
[1737086712244,7.5442933,211.72,211.64,7.5442933]
[1737086712450,4.7254,211.68,211.64,7.5442933]
[1737086712744,7.5442933,211.7,211.58,6.59358607]
[1737086713049,4.7258,211.66,211.61,12.2710933]
[1737086713250,7.5442933,211.68,211.56,6.59358607]
[1737086713544,7.5442933,211.66,211.59,7.5442933]
[1737086715353,4.7265,211.63,211.59,7.5442933]
[1737086715650,7.5442933,211.62,211.55,7.5442933]
[1737086716152,4.7271,211.6,211.53,4.7284]
[1737086716352,7.5442933,211.62,211.54,7.5442933]
[1737086716647,7.5442933,211.6,211.53,7.5442933]
[1737086716950,4.7273,211.59,211.53,12.2728933]
[1737086719450,7.5442933,211.6,211.4,6.59358607]
[1737086719650,4.7281,211.56,211.5,7.5442933]
[1737086720954,4.7281,211.56,211.5,12.2735933]
[1737086721355,4.7282,211.55,211.5,7.5442933]
[1737086721652,4.7282,211.55,211.48,7.5442933]
[1737086722053,4.7282,211.55,211.48,12.2737933]
[1737086722555,3.1068,211.57,211.45,7.5442933]
[1737086722556,7.5442933,211.52,211.45,7.5442933]
[1737086723452,7.5442933,211.54,211.47,7.5442933]
[1737086725152,4.729,211.52,211.47,7.5442933]
[1737086726659,7.5442933,211.54,211.47,7.5442933]
[1737086726856,7.5442933,211.52,211.47,7.5442933]
[1737086727050,7.5442933,211.52,211.45,7.5442933]
[1737086727959,4.7295,211.49,211.45,7.5442933]
[1737086728459,7.5442933,211.5,211.43,4.7307]
[1737086728662,4.7297,211.48,211.43,12.2749933]
[1737086729155,7.5442933,211.5,211.43,12.2749933]
[1737086729358,12.2737933,211.5,211.43,12.2749933]
[1737086729558,7.5442933,211.5,211.43,12.2749933]
[1737086729953,4.7296,211.49,211.44,4.7306]
[1737086732766,4.7298,211.48,211.43,7.5442933]
[1737086732958,12.2740933,211.48,211.42,4.7309]
[1737086734861,12.2740933,211.48,211.43,4.7309]
[1737086736263,4.7298,211.48,211.43,12.2751933]
[1737086736460,7.5442933,211.5,211.43,12.2751933]
[1737086736461,4.73,211.47,211.43,12.2751933]
[1737086736968,160.76994142,211.56,211.45,7.5442933]
[1737086737162,7.5442933,211.52,211.45,7.5442933]
[1737086739061,4.7293,211.51,211.46,4.7301]
[1737086739361,7.5442933,211.52,211.45,7.5442933]
[1737086740165,4.7293,211.5,211.45,12.2746933]
[1737086743865,12.2735933,211.5,211.45,4.7304]
[1737086744270,4.7295,211.49,211.45,4.7304]
[1737086745366,1.4887,211.56,211.45,7.5442933]
[1737086745568,1.4887,211.56,211.49,7.5442933]
[1737086745768,9.0329933,211.56,211.49,7.5442933]
[1737086746369,4.7286,211.54,211.49,12.2737933]
[1737086748768,7.5442933,211.54,211.47,4.7297]
[1737086748971,7.5442933,211.52,211.44,14.13787937]
[1737086749966,4.7293,211.5,211.46,4.7301]
[1737086752572,4.7286,211.53,211.48,4.7296]
[1737086752871,4.7286,211.53,211.48,7.5442933]
[1737086753972,12.2726933,211.55,211.5,4.7293]
[1737086754171,7.5442933,211.55,211.5,4.7293]
[1737086754471,7.5442933,211.55,211.48,7.5442933]
[1737086754672,7.5442933,211.53,211.46,7.5442933]
[1737086755569,7.5442933,211.53,211.48,4.7297]
[1737086757072,4.729,211.52,211.48,4.7297]
[1737086757271,4.729,211.52,211.47,4.7299]
[1737086757465,7.5442933,211.53,211.46,7.5442933]
[1737086757663,7.5442933,211.53,211.45,6.59358607]
[1737086757868,7.5442933,211.53,211.45,7.5442933]
[1737086759070,12.2735933,211.51,211.46,4.7302]
[1737086760881,4.7296,211.49,211.45,4.7303]
[1737086762073,12.2735933,211.51,211.47,4.7299]
[1737086762377,12.2735933,211.51,211.44,7.5442933]
[1737086762872,4.7293,211.5,211.46,4.7301]
[1737086763073,7.5442933,211.51,211.42,6.59358607]
[1737086763270,7.5442933,211.51,211.44,7.5442933]
[1737086764272,1.4887,211.56,211.44,7.5442933]
[1737086764477,7.5442933,211.52,211.44,7.5442933]
[1737086765281,4.7292,211.51,211.44,7.5442933]
[1737086766781,4.7292,211.51,211.46,12.2742933]
[1737086770183,7.5442933,211.52,211.46,12.2742933]
[1737086770383,4.7293,211.5,211.46,4.73]
[1737086770584,7.5442933,211.5,211.42,6.59358607]
[1737086770782,4.73,211.47,211.42,6.59358607]
[1737086771084,4.73,211.47,211.43,4.7307]
[1737086771583,4.7298,211.48,211.44,4.7306]
[1737086771881,7.5442933,211.5,211.42,7.5442933]
[1737086772282,4.7297,211.49,211.45,4.7304]
[1737086772582,4.7297,211.49,211.42,7.5442933]
[1737086773281,4.7297,211.49,211.44,4.7304]
[1737086775081,4.7297,211.49,211.44,12.2746933]
[1737086775286,1.4887,211.56,211.44,7.5442933]
[1737086775482,7.5442933,211.53,211.46,7.5442933]
[1737086776086,4.729,211.52,211.46,7.5442933]
[1737086777193,4.729,211.52,211.48,4.7297]
[1737086779590,4.7292,211.51,211.47,4.7299]
[1737086782392,7.5442933,211.53,211.46,7.5442933]
[1737086783493,12.2728933,211.53,211.48,4.7295]
[1737086786087,4.7286,211.53,211.48,4.7295]
[1737086786291,12.2728933,211.53,211.48,4.7295]
[1737086787193,7.5442933,211.51,211.46,4.7301]
[1737086788094,4.7293,211.5,211.46,4.7301]
[1737086788793,4.7298,211.48,211.44,4.7305]
[1737086796204,7.5442933,211.49,211.4,6.59358607]
[1737086796400,12.2742933,211.47,211.4,6.59358607]
[1737086797604,12.2742933,211.47,211.42,4.7309]
[1737086800510,4.7293,211.5,211.43,7.5442933]
[1737086801507,23.0,211.55,211.45,7.5442933]
[1737086801810,4.7291,211.51,211.45,7.5442933]
[1737086803013,4.7293,211.5,211.45,12.2744933]
[1737086803212,4.7293,211.5,211.45,7.5442933]
[1737086804113,4.7293,211.5,211.46,4.7302]
[1737086810617,23.0,211.55,211.47,7.5442933]
[1737086810815,30.5442933,211.55,211.47,7.5442933]
[1737086811218,23.0,211.55,211.52,4.7287]
[1737086811521,23.0,211.55,211.49,7.5442933]
[1737086811722,23.0,211.55,211.51,7.5442933]
[1737086812118,23.0,211.55,211.54,4.7284]
[1737086813324,23.0,211.55,211.51,7.5442933]
[1737086813625,23.0,211.55,211.52,4.7286]
[1737086814428,4.729,211.52,211.46,4.73]
[1737086814622,7.5442933,211.5,211.45,6.59358607]
[1737086815025,12.2736933,211.5,211.45,6.59358607]
[1737086815927,12.2736933,211.5,211.43,7.5442933]
[1737086816127,12.2736933,211.5,211.45,4.7303]
[1737086816631,12.2736933,211.5,211.46,4.7302]
[1737086820631,4.7295,211.49,211.42,7.5442933]
[1737086820828,7.5442933,211.5,211.42,7.5442933]
[1737086822135,7.5442933,211.5,211.45,4.7302]
[1737086822638,7.5442933,211.51,211.45,4.7302]
[1737086822935,23.0,211.55,211.5,7.5442933]
[1737086824138,23.0,211.55,211.52,4.7288]
[1737086824339,23.0,211.55,211.52,7.5442933]
[1737086826237,23.0,211.55,211.53,4.7284]
[1737086828045,27.7282,211.55,211.5,4.7292]
[1737086828240,35.2724933,211.55,211.5,4.7292]
[1737086831446,4.7284,211.54,211.5,4.7292]
[1737086832348,30.5442933,211.55,211.5,4.7292]
[1737086832548,35.2724933,211.55,211.5,4.7292]
[1737086834043,27.7282,211.55,211.49,7.5442933]
[1737086834248,23.0,211.55,211.53,7.5442933]
[1737086834645,8.1746,211.55,211.45,4.8]
[1737086834846,8.1746,211.55,211.54,7.5442933]
[1737086835647,8.1746,211.55,211.54,12.2726933]
[1737086839246,16.1746,211.55,211.54,12.2726933]
[1737086843052,16.1746,211.55,211.54,4.7284]
[1737086843345,16.1746,211.55,211.48,6.59358607]
[1737086843552,23.7188933,211.55,211.48,14.13787937]
[1737086844154,4.7285,211.54,211.48,18.86737937]
[1737086844355,4.7285,211.54,211.48,12.2737933]
[1737086845053,4.7285,211.54,211.49,4.7295]
[1737086848856,28.4470933,211.55,211.5,4.7292]
[1737086849657,28.4470933,211.55,211.48,7.5442933]
[1737086849857,28.4470933,211.55,211.49,4.7295]
[1737086851854,28.4470933,211.55,211.48,7.5442933]
[1737086852055,28.4470933,211.55,211.5,4.7293]
[1737086854159,4.7284,211.54,211.48,4.7297]
[1737086854361,7.6841,211.54,211.48,4.7297]
[1737086856060,2.9557,211.54,211.49,12.2737933]
[1737086856359,2.9557,211.54,211.49,7.5442933]
[1737086858159,2.9557,211.54,211.5,4.7293]
[1737086858762,7.6843,211.54,211.48,4.7295]
[1737086858958,7.5442933,211.53,211.47,7.5442933]
[1737086860162,4.729,211.52,211.47,12.2741933]
[1737086860966,4.729,211.52,211.47,4.7299]
[1737086861663,4.7291,211.51,211.46,4.7302]
[1737086861863,7.5442933,211.53,211.46,4.7302]
[1737086862063,7.5442933,211.51,211.45,7.5442933]
[1737086862364,15.5442933,211.49,211.42,6.59358607]
[1737086862563,8.0,211.48,211.42,6.59358607]
[1737086863066,4.7302,211.47,211.42,6.59358607]
[1737086863566,4.7302,211.47,211.41,12.2753933]
[1737086865471,4.7302,211.47,211.42,4.7311]
[1737086865770,8.0,211.48,211.43,7.5442933]
[1737086866263,8.0,211.48,211.45,4.7303]
[1737086877077,8.0,211.48,211.43,7.5442933]
[1737086877273,8.0,211.48,211.43,12.2748933]
[1737086877768,8.0,211.48,211.43,7.5442933]
[1737086877969,4.73,211.47,211.43,7.5442933]
[1737086878171,8.0,211.46,211.43,7.5442933]
[1737086878487,8.0,211.46,211.41,12.2753933]
[1737086878690,8.0,211.45,211.4,4.7315]
[1737086878884,8.0,211.45,211.4,11.32508607]
[1737086879888,8.0,211.45,211.4,4.7315]
[1737086881888,8.0,211.43,211.39,7.5442933]
[1737086883090,12.7309,211.43,211.39,7.5442933]